bitfinex-derivatives/quotes_ETHF0:USTF0_20260316
["timestamp","ask_amount","ask_price","bid_price","bid_amount"]
[1773704956756,5.80811806,2353.9,2353.0,2.49061286]
[1773704956957,5.80811806,2353.9,2352.9,4.44833744]
[1773704957155,5.80811806,2353.9,2352.8,7.06810495]
[1773704957460,5.80811806,2353.9,2352.6,2.48282176]
[1773704958556,5.80811806,2353.9,2352.8,2.49652836]
[1773704959554,5.80811806,2353.9,2352.5,0.00396074]
[1773704961355,5.80811806,2353.9,2352.0,7.118]
[1773704961554,6.29455813,2353.6,2351.8,0.21259]
[1773704961756,6.29455813,2353.6,2352.2,4.55676149]
[1773704962066,6.29455813,2353.6,2351.9,4.7485454]
[1773704962357,6.29455813,2353.6,2352.4,0.09742875]
[1773704962763,6.29455813,2353.6,2352.6,0.07377363]
[1773704963559,6.29455813,2353.6,2352.1,0.07707378]
[1773704963964,6.29455813,2353.6,2352.3,0.06729415]
[1773704964368,6.29455813,2353.6,2352.5,0.06729415]
[1773704964660,6.29455813,2353.6,2352.7,0.01651497]
[1773704967058,6.29455813,2353.6,2352.8,4.65042477]
[1773704967367,6.35339153,2353.9,2352.7,0.21251]
[1773704967567,6.35339153,2353.9,2353.1,0.21246]
[1773704967764,0.00429549,2354.0,2353.2,0.00120268]
[1773704967970,6.33838243,2354.0,2353.2,4.65042477]
[1773704968164,4.15368243,2354.0,2353.3,2.38754084]
[1773704968363,6.28147835,2355.0,2353.3,2.38754084]
[1773704968564,6.28147835,2354.8,2353.5,2.17509084]
[1773704968869,6.28147835,2354.8,2353.7,2.17238036]
[1773704969268,6.2851723,2354.8,2353.7,2.17580437]
[1773704969469,6.2851723,2354.8,2353.7,0.00342401]
[1773704969970,6.2851723,2354.8,2353.7,2.15165594]
[1773704971364,6.28147835,2354.7,2353.2,2.20631713]
[1773704971671,6.28147835,2354.7,2353.4,4.83909064]
[1773704972066,6.28147835,2354.7,2352.8,7.3885]
[1773704972468,6.28147835,2354.7,2353.3,6.89270525]
[1773704972670,6.28147835,2354.7,2353.3,2.25579382]
[1773704972971,6.28147835,2354.7,2353.4,4.63691143]
[1773704973168,6.28147835,2354.7,2353.5,2.21953666]
[1773704973475,6.28147835,2354.7,2353.6,4.62019143]
[1773704974270,6.28147835,2354.7,2353.3,2.20980773]
[1773704974574,6.28147835,2354.7,2353.4,2.20980773]
[1773704975269,6.28147835,2354.7,2353.6,2.27179376]
[1773704977173,6.28147835,2354.7,2353.3,2.24294685]
[1773704977574,6.28147835,2354.7,2353.4,2.24294685]
[1773704982173,6.28147835,2354.7,2353.6,2.2471761]
[1773704985179,6.28147835,2354.7,2353.2,2.30527131]
[1773704985574,6.28147835,2354.7,2353.3,2.30527131]
[1773704985877,6.28147835,2354.7,2353.4,6.98742567]
[1773704986277,6.28147835,2354.7,2353.4,2.30734046]
[1773704987979,6.28147835,2354.7,2353.1,0.21247]
[1773704987980,6.28147835,2354.7,2353.6,2.29993509]
[1773704988180,6.28147835,2354.7,2353.8,2.29993509]
[1773704988681,6.28147835,2354.7,2354.0,2.29993509]
[1773704990185,6.28147835,2354.7,2353.8,1.64534459]
[1773704990585,6.28147835,2354.7,2353.9,1.64534459]
[1773705000885,6.28147835,2354.7,2353.4,1.30917182]
[1773705001090,6.28147835,2354.7,2353.5,1.30320561]
[1773705001289,6.28147835,2354.7,2353.9,1.30320561]
[1773705002190,6.28147835,2354.7,2353.5,1.50924922]
[1773705002591,6.28147835,2354.7,2353.5,6.29694726]
[1773705002790,6.28147835,2354.7,2353.6,1.10093004]
[1773705003288,6.28147835,2354.7,2353.9,0.2124]
[1773705003483,6.28147835,2354.7,2354.0,1.0949629]
[1773705003684,6.28147835,2354.7,2354.1,1.0949629]
[1773705004090,0.00369395,2354.8,2354.1,1.0949629]
[1773705004291,5.78028997,2355.4,2354.3,1.08585165]
[1773705004692,5.78028997,2355.4,2354.5,1.0821577]
[1773705005095,5.78028997,2355.4,2354.7,1.08644336]
[1773705005293,5.78480744,2355.4,2354.7,1.09068989]
[1773705006493,0.00451747,2355.4,2354.9,0.4914695]
[1773705006893,0.00451747,2355.4,2355.0,4.70720846]
[1773705007293,0.00451747,2355.4,2354.7,0.00424653]
[1773705007294,0.00451747,2355.4,2354.9,4.66877402]
[1773705007496,0.00451747,2355.4,2354.7,0.00424653]
[1773705007899,0.00451747,2355.4,2355.0,4.66877402]
[1773705008101,0.00451747,2355.4,2354.8,4.66877402]
[1773705008303,0.00451747,2355.4,2354.7,0.00424653]
[1773705008603,0.00451747,2355.4,2355.0,4.55166632]
[1773705008798,0.00451747,2355.4,2354.9,7.228]
[1773705009101,0.00451747,2355.4,2355.0,4.55166632]
[1773705009501,6.36224671,2355.4,2355.0,4.55166632]
[1773705009702,6.36224671,2355.4,2354.9,7.228]
[1773705010002,0.00451747,2355.4,2355.0,4.90550167]
[1773705013201,0.00451747,2355.4,2355.0,12.13250167]
[1773705013502,0.00451747,2355.4,2355.0,7.227]
[1773705013999,6.45236369,2356.1,2355.1,4.91410401]
[1773705015009,6.45559006,2356.1,2355.1,4.91410401]
[1773705016409,6.46059055,2356.1,2355.1,5.12639401]
[1773705017911,6.46059055,2356.1,2355.1,5.33838075]
[1773705019407,6.46059055,2356.1,2355.1,4.91410401]
[1773705025412,6.46059055,2356.1,2354.9,4.64035493]
[1773705025612,6.46059055,2356.1,2354.8,7.44531]
[1773705025808,6.46059055,2356.1,2354.9,4.64035493]
[1773705027118,6.46059055,2356.1,2355.0,7.196]
[1773705027517,6.46059055,2356.1,2355.1,4.48271688]
[1773705028321,6.46059055,2356.1,2355.1,11.68371688]
[1773705028619,6.46059055,2356.1,2355.1,7.201]
[1773705028819,6.46059055,2356.1,2355.1,7.203]
[1773705029121,6.46059055,2356.1,2355.2,4.59895344]
[1773705030522,6.46059055,2356.1,2354.9,7.194]
[1773705030918,6.46059055,2356.1,2354.7,0.00424653]
[1773705030919,6.46059055,2356.1,2355.1,4.80538868]
[1773705031120,6.46059055,2356.1,2355.0,4.80538868]
[1773705031319,6.46059055,2356.1,2354.7,7.20024653]
[1773705031718,6.46059055,2356.1,2354.8,4.61111422]
[1773705034329,6.34175761,2355.9,2354.8,4.61111422]
[1773705042740,6.04194327,2355.7,2353.8,2.74417212]
[1773705043028,6.04194327,2355.3,2353.9,4.82551554]
[1773705043235,6.04194327,2355.1,2353.9,4.82551554]
[1773705043434,6.04194327,2355.1,2353.7,7.18615369]
[1773705043635,6.04194327,2354.9,2353.2,2.74055607]
[1773705043836,6.04194327,2354.9,2353.5,7.22678774]
[1773705044035,6.04194327,2354.9,2353.5,2.78119012]
[1773705044336,6.04194327,2354.9,2353.7,3.09968623]
[1773705046127,6.04194327,2354.9,2353.3,3.11137941]
[1773705046436,6.04194327,2354.9,2353.4,3.11137941]
[1773705046839,6.04194327,2354.9,2353.5,7.99705593]
[1773705047137,6.04194327,2354.9,2353.5,3.11357794]
[1773705047436,6.04194327,2354.9,2353.7,3.10870939]
[1773705049736,6.04194327,2354.9,2353.8,4.90162737]
[1773705049927,6.04194327,2354.9,2353.9,4.02717938]
[1773705050336,6.04194327,2354.9,2354.1,4.02231132]
[1773705050729,6.04194327,2354.9,2354.2,4.69541954]
[1773705050927,6.04194327,2354.9,2354.0,4.02231132]
[1773705056342,6.04194327,2354.9,2354.2,3.99183779]
[1773705057439,6.04194327,2354.9,2353.9,0.21239]
[1773705057440,5.9938386,2355.9,2354.4,3.98109372]
[1773705057937,5.9938386,2355.7,2354.1,3.85578867]
[1773705058239,5.9938386,2355.7,2354.3,4.51272423]
[1773705058435,5.9938386,2355.5,2354.2,4.34897944]
[1773705058643,5.9938386,2355.5,2354.2,3.85578867]
[1773705058838,5.9938386,2355.5,2354.3,4.54468358]
[1773705059342,5.9938386,2355.5,2354.3,8.21262099]
[1773705060242,5.9938386,2355.5,2354.1,3.67412839]
[1773705060439,5.9938386,2354.4,2352.3,3.67755402]
[1773705060646,5.9938386,2354.0,2352.3,3.67755402]
[1773705060840,5.9938386,2354.0,2352.7,4.70329939]
[1773705061145,5.9938386,2354.0,2352.3,3.68112398]
[1773705061336,5.9970781,2354.0,2352.3,3.68347989]
[1773705061644,5.9970781,2354.0,2352.4,4.59662371]
[1773705062145,5.9970781,2354.0,2352.4,8.26126605]
[1773705063245,5.9970781,2354.0,2352.5,3.92915546]
[1773705063541,5.9970781,2354.0,2352.3,3.93151137]
[1773705064040,5.9970781,2354.0,2352.4,8.56533099]
[1773705064441,5.9970781,2354.0,2352.5,3.92831543]
[1773705066141,5.9970781,2354.0,2352.3,3.91526063]
[1773705066445,5.9970781,2354.0,2352.4,4.92790196]
[1773705066646,5.9970781,2354.0,2352.4,8.84080668]
[1773705067643,5.9970781,2354.0,2352.5,3.88795693]
[1773705069638,5.9970781,2354.0,2350.1,12.39263725]
[1773705069844,2.02146316,2352.4,2350.5,3.895055]
[1773705070050,5.9938386,2352.3,2350.5,3.895055]
[1773705070350,5.9938386,2352.3,2350.1,0.07401507]
[1773705070351,5.9938386,2351.3,2350.1,0.07401507]
[1773705070546,5.9938386,2351.3,2349.4,3.88995448]
[1773705070747,5.99931403,2351.3,2349.4,3.88995448]
[1773705070949,5.99931403,2351.3,2349.5,3.89052503]
[1773705071151,5.99931403,2351.3,2349.6,3.88571939]
[1773705071451,5.99931403,2351.3,2349.6,8.5218499]
[1773705072243,5.9938386,2350.9,2349.6,4.63613051]
[1773705072443,5.9938386,2350.9,2349.4,4.20870206]
[1773705072643,5.9938386,2350.9,2349.3,0.64117574]
[1773705072847,5.9938386,2350.9,2349.3,4.85203306]
[1773705073243,5.9938386,2350.9,2349.3,0.64117574]
[1773705073643,5.9938386,2349.9,2347.5,4.41766047]
[1773705073845,5.9938386,2349.9,2348.0,4.22281737]
[1773705074047,5.9938386,2349.9,2348.5,4.21670246]
[1773705074852,5.9938386,2348.9,2347.5,0.00308147]
[1773705075151,5.99788693,2348.9,2347.5,4.36965189]
[1773705075851,5.99788693,2348.9,2347.7,4.36657042]
[1773705076050,4.61585888,2348.9,2347.7,4.36657042]
[1773705076246,0.00404833,2348.9,2347.7,4.36657042]
[1773705076450,0.00404833,2348.9,2347.9,5.84753433]
[1773705076854,0.00404833,2348.9,2348.1,5.94723522]
[1773705077053,5.9938386,2350.3,2348.1,5.94723522]
[1773705077255,5.9938386,2350.3,2348.0,6.52239491]
[1773705077256,5.9938386,2350.3,2348.3,5.93315071]
[1773705077455,5.9938386,2350.3,2348.5,5.93315071]
[1773705077651,5.9938386,2350.2,2348.5,5.93315071]
[1773705077950,5.9938386,2350.1,2348.1,12.942871]
[1773705078148,5.99878802,2350.1,2348.1,12.942871]
[1773705078347,5.9938386,2349.8,2348.2,4.50586618]
[1773705078552,5.9938386,2349.8,2347.8,6.039871]
[1773705079050,5.9938386,2349.8,2348.0,6.02563242]
[1773705079854,5.9938386,2349.8,2348.1,4.50012751]
[1773705080056,5.9938386,2349.8,2348.2,6.00173029]
[1773705080454,5.9938386,2349.8,2348.3,4.51458522]
[1773705080654,5.9938386,2349.8,2348.4,6.00173029]
[1773705080855,5.9938386,2349.8,2348.5,6.932]
[1773705081053,5.9938386,2349.8,2348.6,6.02789001]
[1773705081451,5.9938386,2349.8,2348.7,10.89771384]
[1773705081649,5.9938386,2349.8,2348.7,6.02789001]
[1773705082654,5.9938386,2349.8,2348.7,13.01389001]
[1773705083263,5.9938386,2349.8,2348.7,6.02789001]
[1773705083460,5.9938386,2349.8,2348.8,4.63145588]
[1773705083663,5.9938386,2349.8,2348.9,5.92328782]
[1773705084055,5.9938386,2349.8,2348.0,5.90673619]
[1773705084255,5.9938386,2349.8,2348.2,5.90673619]
[1773705084665,5.9938386,2349.8,2348.4,5.90673619]
[1773705084859,5.9938386,2349.8,2348.5,7.045]
[1773705085064,5.9938386,2349.8,2348.6,5.8920021]
[1773705085263,5.9938386,2349.8,2348.5,11.84689548]
[1773705085264,5.9938386,2349.8,2348.5,11.85289548]
[1773705085466,5.9938386,2349.8,2348.4,5.8920021]
[1773705085764,5.9938386,2349.8,2348.5,4.89019391]
[1773705086064,5.9938386,2349.8,2348.5,5.95865984]
[1773705086567,5.9938386,2349.8,2348.7,5.95865984]
[1773705087368,5.9938386,2349.8,2348.5,5.97627613]
[1773705087868,5.9938386,2349.8,2348.6,10.45976837]
[1773705088265,5.9938386,2349.8,2348.6,6.01092695]
[1773705090660,5.9938386,2349.8,2348.2,7.067]
[1773705090866,5.96930734,2349.7,2348.1,5.97409121]
[1773705091068,5.96930734,2349.7,2347.9,5.96066246]
[1773705091263,5.96930734,2349.7,2348.3,5.96066246]
[1773705094169,5.96930734,2349.7,2348.0,5.55908192]
[1773705095369,5.96930734,2349.7,2348.1,5.54759968]
[1773705098264,5.96930734,2349.5,2348.1,5.54759968]
[1773705099277,5.96930734,2349.3,2348.1,5.54759968]
[1773705099576,6.03531914,2349.4,2348.1,5.54759968]
[1773705099577,5.96930734,2349.1,2348.1,5.54759968]
[1773705100276,5.96930734,2348.9,2348.1,5.54759968]
[1773705100678,5.96930734,2348.9,2347.5,0.00308147]
[1773705100679,5.96930734,2348.9,2347.6,5.55676658]
[1773705100881,5.96930734,2348.9,2347.8,5.56994305]
[1773705101080,5.96930734,2348.9,2347.9,10.15067385]
[1773705101281,5.96930734,2348.7,2347.9,5.55725263]
[1773705101882,5.96930734,2348.7,2348.0,5.57012609]
[1773705103876,5.96930734,2348.7,2347.7,5.55204351]
[1773705104078,5.96930734,2348.5,2347.7,5.55204351]
[1773705104278,5.96930734,2348.3,2347.5,0.00308147]
[1773705104484,5.97435912,2348.3,2347.5,5.55512498]
[1773705104672,0.00505178,2348.3,2347.5,5.55512498]
[1773705105272,5.97435912,2348.3,2347.7,5.51718659]
[1773705105482,5.97435912,2348.3,2347.5,5.52026806]
[1773705107083,5.97435912,2348.3,2347.6,5.49158862]
[1773705107479,0.00505178,2348.3,2347.6,5.49158862]
[1773705108083,0.00505178,2348.3,2347.6,12.67658862]
[1773705108278,0.00505178,2348.3,2347.7,5.46498038]
[1773705108783,5.97435912,2348.3,2347.7,5.46498038]
[1773705109175,3.5597249,2348.9,2347.7,5.46498038]
[1773705109483,5.96930734,2349.0,2347.9,5.27466057]
[1773705109685,5.96930734,2348.8,2347.9,5.27466057]
[1773705109980,5.96930734,2349.2,2347.9,5.27466057]
[1773705110180,5.96930734,2349.0,2347.9,5.27466057]
[1773705110382,5.97366492,2349.2,2348.1,5.23995906]
[1773705110684,0.00435758,2349.2,2348.2,4.49302951]
[1773705110982,0.00435758,2349.2,2348.3,5.19365237]
[1773705111183,5.97366492,2349.2,2348.4,5.18201106]
[1773705113680,5.8753403,2349.0,2348.2,4.76468421]
[1773705114484,5.8753403,2349.0,2347.6,4.73013749]
[1773705114485,5.8753403,2349.0,2347.9,7.221]
[1773705114686,5.8753403,2349.0,2348.0,4.77210007]
[1773705114884,5.8753403,2349.0,2348.0,9.49571699]
[1773705115087,5.8753403,2349.0,2348.1,4.70238368]
[1773705115683,5.8753403,2348.8,2347.6,4.70238368]
[1773705115884,5.8753403,2348.8,2347.8,4.72399316]
[1773705116278,5.8753403,2348.8,2347.9,4.71235255]
[1773705117388,5.6281199,2349.0,2347.9,4.71235255]
[1773705117590,5.6281199,2348.8,2347.9,4.71235255]
[1773705117789,5.6281199,2348.6,2347.9,4.71235255]
[1773705120588,5.6281199,2348.6,2348.0,4.77312143]
[1773705120784,5.6281199,2348.9,2348.0,4.77312143]
[1773705121787,5.6281199,2348.9,2348.2,4.77250332]
[1773705123191,5.6281199,2349.1,2348.2,4.77250332]
[1773705126898,5.6281199,2349.1,2348.1,12.14710268]
[1773705127193,5.6281199,2349.1,2348.2,4.88722017]
[1773705127994,5.6281199,2348.9,2348.2,4.88722017]
[1773705129695,0.00435758,2349.2,2348.2,4.88722017]
[1773705129899,5.6281199,2349.1,2348.2,4.88722017]
[1773705132099,5.6281199,2349.1,2348.4,4.98549684]
[1773705134394,5.6281199,2349.1,2347.6,4.92362409]
[1773705134602,5.6281199,2349.1,2347.8,4.92362409]
[1773705134796,5.6281199,2348.9,2347.8,4.92362409]
[1773705134993,5.6281199,2348.7,2347.5,0.00308147]
[1773705135298,5.6281199,2348.7,2345.7,8.52564]
[1773705135299,5.6281199,2348.4,2346.6,12.09546091]
[1773705135494,5.6281199,2348.1,2346.6,4.87746091]
[1773705135795,5.6281199,2347.9,2346.6,4.87746091]
[1773705136000,5.6281199,2347.7,2346.6,4.87746091]
[1773705136194,5.6281199,2347.7,2346.6,4.88219865]
[1773705137295,5.6281199,2347.7,2346.6,0.00473774]
[1773705137492,5.6281199,2347.7,2346.6,4.94314888]
[1773705139696,5.6281199,2347.7,2346.6,4.87954961]
[1773705139903,5.6281199,2348.5,2347.0,4.88460263]
[1773705140101,5.6281199,2348.3,2347.0,4.88460263]
[1773705140794,0.21445587,2348.5,2346.6,0.00473774]
[1773705140795,5.6281199,2348.1,2346.6,0.00473774]
[1773705141000,5.6281199,2347.9,2346.6,0.00473774]
[1773705141195,5.6281199,2347.9,2346.6,4.87643533]
[1773705141396,5.6281199,2347.9,2346.7,4.87169759]
[1773705142800,5.6281199,2347.9,2346.8,4.86737981]
[1773705145906,5.6281199,2347.9,2346.9,7.253]
[1773705146104,5.6281199,2347.9,2346.8,12.12037981]
[1773705146307,5.6281199,2347.9,2346.9,4.73490207]
[1773705147303,6.02876307,2348.5,2347.1,4.72747613]
[1773705147502,6.02876307,2348.5,2347.2,4.72747613]
[1773705148303,6.02876307,2348.5,2347.3,4.71583136]
[1773705150710,6.02876307,2348.5,2347.1,4.71382596]
[1773705150910,6.02876307,2348.5,2347.2,7.261]
[1773705151212,6.02876307,2348.5,2347.3,4.70423683]
[1773705154012,6.02876307,2348.8,2347.5,4.74120562]
[1773705155714,6.02876307,2348.6,2347.0,4.73467567]
[1773705155913,6.02876307,2348.6,2347.1,4.69683094]
[1773705156808,6.02876307,2348.9,2347.7,4.69913421]
[1773705159817,6.02876307,2348.9,2347.8,4.67382548]
[1773705160813,6.02876307,2348.7,2347.2,4.66864954]
[1773705161013,6.02876307,2348.5,2347.2,4.66864954]
[1773705161214,6.02876307,2348.3,2347.2,4.66864954]
[1773705161713,6.02876307,2348.3,2346.7,4.65985051]
[1773705161913,6.02876307,2348.1,2346.7,4.65985051]
[1773705162112,6.02876307,2347.9,2346.9,4.63808938]
[1773705162814,6.02876307,2347.9,2346.7,4.63725947]
[1773705163013,6.02876307,2347.7,2346.7,4.63725947]
[1773705163415,6.02876307,2347.7,2346.6,0.00473774]
[1773705163814,6.02876307,2347.5,2346.6,4.73620753]
[1773705164013,6.03416929,2347.5,2346.6,4.73620753]
[1773705167818,6.03416929,2347.5,2346.7,4.72407601]
[1773705168322,0.00540622,2347.5,2346.7,4.72407601]
[1773705169021,6.03416929,2347.5,2346.8,4.70701172]
[1773705170016,3.5597249,2348.3,2347.0,4.70712364]
[1773705170220,6.02876307,2348.1,2347.2,4.70171742]
[1773705170420,6.02876307,2348.4,2347.4,4.70171742]
[1773705170719,6.02876307,2348.4,2347.5,4.70171742]
[1773705171122,6.03327263,2348.4,2347.5,4.70171742]
[1773705171924,6.03327263,2348.4,2347.3,11.91870428]
[1773705172124,6.03327263,2348.4,2347.4,4.64543408]
[1773705176323,6.03327263,2348.4,2347.6,4.60550745]
[1773705176324,0.00450956,2348.4,2347.6,4.60550745]
[1773705176525,5.96943459,2348.4,2347.6,4.60550745]
[1773705177627,5.96943459,2348.4,2347.6,11.86950745]
[1773705177832,5.96943459,2348.4,2347.7,4.56393774]
[1773705180130,5.96943459,2348.4,2347.6,7.264]
[1773705180735,5.96943459,2348.4,2347.5,11.7566021]
[1773705181040,5.96943459,2348.4,2347.6,4.48979503]
[1773705182036,0.00450956,2348.4,2347.8,4.52404408]
[1773705182939,0.00450956,2348.4,2347.7,4.73522574]
[1773705183138,5.45613769,2348.6,2347.9,4.51415732]
[1773705183439,5.45613769,2349.1,2347.9,4.51415732]
[1773705183640,5.45613769,2348.9,2347.9,4.51415732]
[1773705184140,5.46086288,2348.9,2347.9,4.51415732]
[1773705185941,0.00472519,2348.9,2348.3,4.49098859]
[1773705186238,5.45613769,2349.3,2348.5,4.47818263]
[1773705186643,5.45613769,2349.8,2348.7,4.47818263]
[1773705187051,5.46088836,2349.8,2348.7,4.47818263]
[1773705187242,5.46088836,2349.8,2348.9,4.48677563]
[1773705187438,5.46088836,2349.8,2349.1,4.48677563]
[1773705187840,5.45613769,2350.7,2349.3,4.48500855]
[1773705188146,5.45613769,2350.5,2349.3,4.48500855]
[1773705188547,5.45613769,2350.5,2349.5,4.47736843]
[1773705188847,5.45613769,2350.5,2349.7,4.47715689]
[1773705188848,5.46113333,2350.5,2349.7,4.47715689]
[1773705189049,5.46113333,2350.5,2349.9,4.46949809]
[1773705189442,5.45613769,2350.1,2348.9,4.46949809]
[1773705189847,5.45613769,2350.1,2349.1,5.53482042]
[1773705190249,5.45613769,2350.1,2349.3,5.53482042]
[1773705190444,5.45613769,2350.1,2349.4,5.53482042]
[1773705191244,5.45613769,2350.4,2349.4,5.53482042]
[1773705192647,5.45613769,2350.4,2348.6,5.53482042]
[1773705192853,5.45613769,2350.4,2348.8,5.53482042]
[1773705193054,5.45613769,2350.4,2349.2,5.53482042]
[1773705193254,5.45613769,2350.4,2349.4,5.53482042]
[1773705193554,5.45613769,2350.4,2349.4,12.80482042]
[1773705193749,5.46113333,2350.5,2349.5,5.53482042]
[1773705195248,0.00499564,2350.5,2349.5,5.74762042]
[1773705195452,5.45613769,2350.9,2349.7,5.53482042]
[1773705195851,5.45613769,2350.9,2349.9,5.53482042]
[1773705196051,5.45613769,2350.9,2350.1,5.53482042]
[1773705196451,5.4605218,2350.9,2350.1,5.5400093]
[1773705197454,5.4605218,2350.9,2350.1,0.00518888]
[1773705200054,5.4605218,2350.9,2349.6,7.274]
[1773705200459,5.4605218,2350.9,2349.3,5.53482042]
[1773705201159,5.4605218,2350.9,2349.3,5.53809196]
[1773705201560,5.45613769,2350.7,2349.3,5.53809196]
[1773705203658,6.40553428,2350.6,2349.3,5.45569563]
[1773705203862,5.68850082,2350.5,2349.3,5.45569563]
[1773705208764,5.68850082,2350.5,2349.4,4.69160216]
[1773705209063,5.68850082,2350.5,2349.5,5.45242409]
[1773705211159,5.68850082,2350.5,2349.3,5.45569563]
[1773705211354,5.68850082,2350.3,2349.3,5.45569563]
[1773705211864,5.68850082,2350.1,2349.3,5.45569563]
[1773705213964,5.68850082,2350.5,2349.5,5.45242409]
[1773705215856,5.68850082,2350.5,2349.7,5.45242409]
[1773705216259,6.43407294,2350.4,2349.7,5.45242409]
[1773705216463,5.68850082,2350.5,2349.7,5.45242409]
[1773705217157,6.43377488,2350.4,2349.7,5.45242409]
[1773705217358,5.68850082,2350.2,2349.7,5.45242409]
[1773705217562,5.68850082,2350.2,2349.4,5.45242409]
[1773705217758,5.68850082,2350.2,2349.3,5.45569563]
[1773705217959,5.68850082,2350.0,2349.3,5.45569563]
[1773705220062,5.68850082,2350.0,2349.1,5.45242409]
[1773705220258,5.68850082,2349.8,2349.1,5.45242409]
[1773705220464,5.68850082,2349.8,2349.1,10.10328902]
[1773705221065,3.5597249,2350.2,2349.2,5.45242409]
[1773705221368,5.68850082,2350.0,2349.2,5.45242409]
[1773705221667,5.68850082,2350.2,2349.3,4.50850648]
[1773705221858,12.12417979,2350.1,2349.4,5.45242409]
[1773705222063,6.43567897,2350.0,2349.4,5.45242409]
[1773705222262,5.68850082,2350.1,2349.4,5.45242409]
[1773705223463,5.68850082,2350.1,2349.2,5.45242409]
[1773705223663,9.24822572,2349.8,2348.6,5.45242409]
[1773705223867,5.68850082,2349.6,2348.6,5.45242409]
[1773705224166,5.68850082,2349.4,2348.7,5.45242409]
[1773705224558,5.68850082,2349.4,2348.7,5.45559422]
[1773705228574,5.68850082,2349.6,2348.9,5.45242409]
[1773705228767,5.68850082,2349.9,2348.9,5.45242409]
[1773705228968,12.08487451,2349.8,2348.9,5.45242409]
[1773705229271,5.68850082,2349.8,2348.9,5.45242409]
[1773705230573,5.68850082,2350.0,2349.1,5.45242409]
[1773705230866,12.08000572,2349.9,2349.1,5.45242409]
[1773705231070,5.68850082,2349.9,2349.1,5.45242409]
[1773705233476,5.34337314,2350.2,2349.3,5.21641335]
[1773705236478,5.34337314,2350.2,2349.5,5.21641335]
[1773705239074,5.34337314,2350.2,2349.2,7.48882]
[1773705239075,5.54487367,2350.5,2349.7,5.36532869]
[1773705239275,11.92671473,2350.4,2349.7,5.36532869]
[1773705239572,5.54487367,2350.4,2349.7,5.36532869]
[1773705241280,5.54487367,2350.4,2349.5,5.36532869]
[1773705244675,5.54487367,2350.4,2349.3,5.36532869]
[1773705244875,5.54487367,2350.2,2349.3,5.36532869]
[1773705245372,5.54487367,2350.2,2349.1,7.28]
[1773705245581,5.54487367,2350.2,2349.1,12.64532869]
[1773705245880,5.54487367,2350.2,2349.2,10.19812128]
[1773705246682,5.54487367,2350.0,2349.2,10.19812128]
[1773705248578,5.54487367,2350.0,2349.2,4.83279259]
[1773705250384,5.54487367,2350.0,2349.3,5.36532869]
[1773705252083,5.54487367,2350.3,2349.5,5.36532869]
[1773705252284,5.54487367,2350.1,2349.5,5.36532869]
[1773705253984,5.54487367,2350.4,2349.5,5.36532869]
[1773705254189,5.54487367,2350.2,2349.5,5.36532869]
[1773705255582,3.5597249,2350.6,2349.5,5.36532869]
[1773705255787,5.54487367,2350.4,2348.9,5.36532869]
[1773705256087,5.54487367,2350.4,2348.9,4.82144595]
[1773705256088,5.54487367,2350.1,2348.9,4.82144595]
[1773705256389,5.54487367,2349.9,2348.9,4.82144595]
[1773705256782,5.54487367,2349.9,2348.9,10.18677464]
[1773705257186,5.54487367,2349.9,2348.9,5.36532869]
[1773705257390,5.54487367,2349.7,2349.0,4.87925775]
[1773705260793,5.54487367,2349.5,2349.0,10.24458644]
[1773705260995,5.54487367,2349.5,2349.1,5.36532869]
[1773705261195,5.54487367,2349.9,2349.1,5.36532869]
[1773705261394,5.54487367,2349.7,2349.1,5.36532869]
[1773705262494,5.33393074,2349.5,2349.1,5.36532869]
[1773705263091,5.33393074,2349.9,2349.1,5.36532869]
[1773705263297,5.33393074,2349.7,2349.1,5.36532869]
[1773705264897,5.33393074,2350.0,2349.1,5.57815869]
[1773705265197,5.33393074,2350.0,2349.3,5.32005382]
[1773705267295,8.89365564,2349.8,2348.7,0.00317013]
[1773705267498,5.33393074,2349.6,2348.7,0.00317013]
[1773705267699,5.33393074,2349.4,2348.7,0.00317013]
[1773705269890,5.33393074,2349.4,2348.7,5.32322395]
[1773705271899,5.33393074,2349.4,2348.5,12.63405382]
[1773705272095,5.33393074,2349.4,2348.6,5.32005382]
[1773705272297,5.33393074,2349.4,2348.6,9.98346358]
[1773705272894,5.33393074,2349.4,2348.6,4.66733282]
[1773705273100,5.33393074,2349.2,2348.6,4.66733282]
[1773705273302,5.33695272,2349.2,2348.6,9.98738664]
[1773705274303,0.00302198,2349.2,2348.7,5.32005382]
[1773705274698,0.00302198,2349.2,2348.9,5.32005382]
[1773705275702,0.00302198,2349.2,2348.7,5.32005382]
[1773705276006,0.00302198,2349.2,2348.8,5.32005382]
[1773705276597,3.5597249,2350.0,2349.0,5.32005382]
[1773705276802,5.33393074,2350.2,2349.2,5.32005382]
[1773705277000,5.33393074,2350.2,2349.4,5.32005382]
[1773705277399,5.33393074,2350.2,2349.6,5.32005382]
[1773705277703,5.33908603,2350.2,2349.6,5.32005382]
[1773705282505,5.33908603,2350.2,2349.5,7.325]
[1773705282712,5.33908603,2350.2,2349.4,12.65505382]
[1773705283113,5.33908603,2350.2,2349.5,5.32005382]
[1773705285016,5.33908603,2350.2,2349.3,12.66005382]
[1773705285513,5.33908603,2350.2,2349.3,5.32005382]
[1773705285713,5.33908603,2350.2,2349.2,12.16502054]
[1773705285714,5.33393074,2350.0,2349.2,7.341]
[1773705286113,5.33393074,2350.0,2349.2,12.66105382]
[1773705287413,5.33393074,2350.0,2349.3,5.32005382]
[1773705287707,0.00515529,2350.2,2349.4,5.32005382]
[1773705287906,5.33908603,2350.2,2349.4,5.32005382]
[1773705290720,5.33908603,2350.2,2349.5,5.32005382]
[1773705292321,5.33908603,2350.2,2349.4,7.355]
[1773705292718,5.33908603,2350.2,2349.4,12.34668725]
[1773705294520,5.33908603,2350.2,2349.5,4.99168725]
[1773705294923,0.00515529,2350.2,2349.5,4.99168725]
[1773705295322,4.9753978,2350.5,2349.7,4.99168725]
[1773705295723,4.9753978,2351.2,2349.9,4.99168725]
[1773705295921,4.9753978,2351.2,2349.8,4.80295427]
[1773705295922,4.9753978,2351.0,2350.1,4.99168725]
[1773705296322,4.97872604,2351.0,2350.1,4.99168725]
[1773705301225,4.97872604,2351.0,2350.3,4.95113899]
[1773705301420,4.97872604,2351.0,2350.3,0.0037624]
[1773705302225,4.97872604,2351.0,2350.1,7.371]
[1773705302424,4.97872604,2351.0,2349.9,4.95113899]
[1773705303224,5.34910237,2350.8,2349.9,4.95652076]
[1773705308635,5.34910237,2350.6,2349.3,12.32913899]
[1773705308829,5.34910237,2350.4,2349.3,12.32913899]
[1773705309030,5.34910237,2350.2,2349.3,12.32913899]
[1773705309426,5.34910237,2350.2,2349.4,4.95113899]
[1773705309627,5.34910237,2350.2,2349.4,4.95642245]
[1773705309835,5.34910237,2350.7,2349.6,4.95113899]
[1773705310130,5.34910237,2350.5,2349.6,4.95113899]
[1773705312728,5.34910237,2350.5,2349.4,4.95642245]
[1773705313837,5.34910237,2350.5,2349.4,5.16922245]
[1773705314036,5.34910237,2350.5,2349.6,4.95113899]
[1773705320640,5.34910237,2350.5,2349.8,4.95113899]
[1773705322139,5.34910237,2350.8,2349.8,5.16390899]